[Event "USA-ch Girls 2017"]
[Site "Saint Louis"]
[Date "2017.07.10"]
[Round "3"]
[White "Nguyen, Emily"]
[Black "Bykovtsev, Agata"]
[Result "1-0"]
[ECO "E62"]
[WhiteElo "2048"]
[BlackElo "2045"]
[Annotator "NA RC"]
[PlyCount "163"]
[EventDate "2017.??.??"]
[EventType "tourn"]
[EventCountry "USA"]
[SourceTitle "playchess.com"]
[Source "ChessBase"]
[SourceQuality "1"]
[TimeControl "40/5400+30:1800+30"]

{[%evp 22,163,71,88,54,32767,18,32767,32767,32767,32767,0,12,0,12,0,0,-9,0,-21,0,0,0,0,7,9,8,0,12,14,12,11,26,20,30,37,81,88,100,112,118,106,112,109,118,108,225,54,168,90,211,42,53,0,0,-17,0,0,0,-248,-327,-273,0,0,77,10,87,5,0,8,0,0,0,2,0,0,0,0,69,50,36,13,54,16,148,63,123,238,427,485,413,600,4134,824,1255,1200,1135,1964,1468,566,4403,12831,611,923,401,662,1600,4618,12838,4627,29956,0,595,1843,355,415,29971,668,12841,1809,1327,12845,29982,5618,2793,12845,12819,5089,12844,29982,5085,29985,12849,29988,29987,685,29980,29985,29985,29987,29987,29988,29989,29991]} 1. d4 {[%emt 0:00:00]} Nf6 {[%emt 0:00:04]} 2. Nf3 {[%emt 0:00:00]} g6 {[%emt 0:00:10]} 3. c4 {[%emt 0:00:00]} Bg7 {[%emt 0:00:05]} 4. g3 {[%emt 0:00:00]} d6 {[%emt 0:00:05]} 5. Bg2 {[%emt 0:00:00]} O-O {[%emt 0:00:11]} 6. O-O {[%emt 0:00:03]} c6 {[%emt 0:00:03]} 7. Nc3 {[%emt 0:00:06]} Qa5 {[%emt 0:00:36]} 8. e4 {[%emt 0:00:05]} e5 {[%emt 0:00:37]} 9. h3 {[%emt 0:00:08]} Nbd7 {[%emt 0:00:45]} 10. Qc2 {[%emt 0:00:08]} exd4 {[%emt 0:03:51] E69: King's Indian: Fianchetto: 6...Nbd7 7 0-0 e5 8 e4 c6 9 h3} (10... b5 11. dxe5 Nxe5 12. Nxe5 dxe5 13. Bd2 Qc7 14. cxb5 cxb5 15. Rac1 Bb7 16. Nxb5 Qxc2 17. Rxc2 Bxe4 18. Bxe4 Nxe4 {½-½ (50) Banusz,T (2620)-Sebenik,M (2534) Nova Gorica 2017}) 11. Nxd4 {[%emt 0:00:08]} Re8 {[%emt 0:04:47]} 12. Be3 {[%emt 0:00:18]} Nb6 {[%emt 0:19:51] LiveBook: 9 Games} 13. Nce2 $146 {[%emt 0:07:49]} ({Predecessor:} 13. b3 Be6 14. Rab1 Nbd7 15. b4 Qc7 16. Nxe6 Rxe6 {½-½ (42) Sage,F (2395)-Canibal,J (2351) ICCF email 2010}) 13... Qe5 {[%emt 0:06:09]} 14. f3 {[%emt 0:06:48]} Qe7 {[%emt 0:08:33]} 15. Bf2 {[%emt 0:04:40]} d5 {[%emt 0:03:48]} 16. cxd5 {[%emt 0:11:21]} cxd5 {[%emt 0:00:27]} 17. Nc3 {[%emt 0:02:07]} dxe4 {[%emt 0:01:51]} 18. Rfe1 {[%emt 0:01:23]} Bd7 {[%emt 0:11:34]} 19. Nxe4 {[%emt 0:01:43]} Nxe4 {[%emt 0:01:29]} 20. Rxe4 {[%emt 0:00:25]} Qd6 {[%emt 0:00:39]} 21. Rd1 {[%emt 0:02:40]} Rxe4 {[%emt 0:03:55]} 22. Qxe4 {[%emt 0:01:03]} Bc6 {[%emt 0:01:01]} 23. Qe1 {[%emt 0:10:12]} Re8 {[%emt 0:11:52]} 24. Qf1 {[%emt 0:05:16]} Qb4 {[%emt 0:12:54]} 25. Nxc6 {[%emt 0:02:48]} bxc6 {[%emt 0:00:01]} 26. b3 {[%emt 0:01:20]} Qa5 {[%emt 0:02:57]} 27. a4 {[%emt 0:06:30]} Qb4 {[%emt 0:01:27]} 28. Qd3 {[%emt 0:03:36]} Bf6 {[%emt 0:00:49]} 29. Qc2 {[%emt 0:05:09]} Bc3 {[%emt 0:03:30] [#]} 30. Rd3 $1 {[%emt 0:08:30]} Nd5 {[%emt 0:00:07]} 31. f4 {[%emt 0:02:07]} ({But not} 31. Bxa7 $6 Be5 $11) 31... Be1 {[%emt 0:00:17]} 32. Bxa7 {[%emt 0:02:46]} Qb7 {[%emt 0:00:21]} 33. Bc5 {[%emt 0:04:29]} Qd7 {[%emt 0:00:25]} (33... Nb4 $16 34. Bxb4 Qxb4) 34. Bxd5 {[%emt 0:04:39]} (34. Qc4 $18) 34... cxd5 {[%emt 0:00:01]} 35. Qg2 {[%emt 0:00:28]} Qf5 $2 {[%emt 0:00:13]} ({Better is} 35... d4 $1 $14) 36. Rd1 $2 {[%emt 0:03:05]} ({Worse is} 36. Rxd5 Qb1 $11) (36. Qxd5 $18 Qxh3 37. Re3) 36... Re4 {[%emt 0:00:55]} 37. Bd4 {[%emt 0:03:07]} Qe6 {[%emt 0:00:32]} 38. Rd3 {[%emt 0:03:03]} Bb4 {[%emt 0:01:05]} (38... Rxd4 $5 39. Rxd4 Qe3+ 40. Kf1 Qxd4 41. Kxe1 Qe3+ 42. Kf1 Qxb3 $15) 39. Bf2 {[%emt 0:00:14]} Be1 {[%emt 0:00:15]} 40. Rd1 $2 {[%emt 0:00:00] [#]} (40. Qf3 $11 {and White stays safe.}) 40... Bxf2+ $1 {[%emt 0:00:35]} 41. Qxf2 {[%emt 0:01:19]} Qxh3 $2 {[%emt 0:10:32]} (41... Re2 $19 42. Qf3 Re3) 42. Rxd5 {[%emt 0:03:27]} h5 {[%emt 0:10:10] [#]} (42... Qe6 $11 {remains equal.} 43. Rd8+ Kg7 44. Qb2+ f6) 43. Re5 {[%emt 0:04:15]} (43. f5 $1 $16) 43... Rb4 {[%emt 0:01:50] [#]} (43... Rxe5 $11 44. fxe5 Qc8) 44. Re3 {[%emt 0:02:19]} (44. f5 $1 $16 {[%cal Rf5g6]} Rg4 45. Re3) 44... Qd7 {[%emt 0:01:59]} 45. Kh2 {[%emt 0:06:17]} Rd4 {[%emt 0:01:53]} 46. a5 {[%emt 0:03:18]} (46. f5 $5) 46... Rd5 {[%emt 0:02:26]} 47. b4 {[%emt 0:08:28]} Qd6 {[%emt 0:02:25]} 48. Re4 {[%emt 0:01:30]} Kh7 {[%emt 0:00:37]} 49. Re5 {[%emt 0:01:25]} (49. f5 $5) 49... Rd2 {[%emt 0:01:27]} (49... Rd1 $11) 50. Re2 {[%emt 0:00:05]} Rd1 {[%emt 0:00:35]} 51. Qc5 {[%emt 0:02:32]} Qd3 {[%emt 0:00:34]} 52. Qe7 {[%emt 0:00:14]} (52. Qe3 $5 {[%cal Re3d3]} Qc4 53. Qe4 $16) 52... Qd5 {[%emt 0:00:48]} (52... Qc4 $11) 53. Qe4 {[%emt 0:00:05]} Qb3 {[%emt 0:00:53]} (53... Qd7 $14) 54. f5 {[%emt 0:01:35]} Rd7 $2 {[%emt 0:01:01]} (54... g5 {might work better.} 55. f6+ Kh6) 55. fxg6+ {[%emt 0:00:46]} fxg6 {[%emt 0:00:05]} 56. a6 {[%emt 0:00:21]} Qa4 {[%emt 0:01:26]} (56... Qc3 $142 57. b5 Qb3) 57. Qc4 {[%emt 0:00:14]} (57. Qe8 $142 Qd1 58. Re7+ Rxe7 59. Qxe7+ Kh6 60. Qf8+ Kh7 61. Qf7+ Kh6 62. a7 Qc2+ 63. Kg1) 57... Ra7 {[%emt 0:00:41]} 58. Ra2 {[%emt 0:00:08]} Qd7 {[%emt 0:00:18]} 59. b5 {[%emt 0:00:23]} Rc7 {[%emt 0:00:41]} 60. Qxc7 {[%emt 0:02:25]} (60. Qf4 $142 g5 61. Qe4+ Kh6 62. b6) 60... Qxc7 {[%emt 0:00:01]} 61. a7 {[%emt 0:00:08]} h4 {[%emt 0:00:04] [#]} 62. a8=Q $1 {[%emt 0:00:10]} Qxg3+ {[%emt 0:00:03]} 63. Kh1 {[%emt 0:00:05]} Qe1+ {[%emt 0:01:28]} 64. Kg2 {[%emt 0:00:10]} Qg3+ {[%emt 0:00:10]} 65. Kf1 {[%emt 0:00:10]} Qd3+ {[%emt 0:00:26]} (65... Qf4+ 66. Rf2 Qc4+ 67. Kg2 Qg4+ 68. Kh1 Qd1+ 69. Kh2 Qd6+ 70. Kg1 Qd1+ 71. Rf1 Qb3) 66. Kf2 $2 {[%emt 0:00:57]} ({White has to play} 66. Re2 $18 Qxb5 67. Qf3) 66... Qd4+ $2 {[%emt 0:00:42]} 67. Ke2 {[%emt 0:01:08]} Qc4+ {[%emt 0:00:38]} 68. Ke3 {[%emt 0:00:09]} Qe6+ {[%emt 0:01:07]} 69. Kd4 {[%emt 0:00:12]} Qd6+ {[%emt 0:00:28]} 70. Qd5 {[%emt 0:00:19]} Qb4+ {[%emt 0:00:27]} 71. Kd3 {[%emt 0:00:52]} Qb1+ {[%emt 0:00:06]} 72. Kd2 {[%emt 0:00:04]} (72. Ke2 $142 Qg1 73. Qf7+ Kh6 74. Qf4+ Kh7 75. Qxh4+ Kg7 76. Qe7+ Kh6 77. Qe3+ Qg5 78. b6) 72... Qb4+ {[%emt 0:00:10]} 73. Kc2 {[%emt 0:00:02]} Qe7 {[%emt 0:00:51]} 74. Ra8 {[%emt 0:00:26]} Qe2+ {[%emt 0:00:08]} 75. Kb3 {[%emt 0:00:23]} Qe3+ {[%emt 0:00:24]} 76. Ka4 {[%emt 0:00:24]} h3 {[%emt 0:01:03]} 77. Qd7+ {[%emt 0:01:48]} Kh6 {[%emt 0:00:02] [#]} 78. Rh8+ $18 {[%emt 0:00:06]} (78. Qxh3+ $142 $1 {[%mdl 512]} Qxh3 79. Rh8+ Kg5 80. Rxh3 Kf4 81. b6 g5 82. b7 Kg4 83. Rc3) 78... Kg5 {[%emt 0:00:06]} 79. Rxh3 {[%emt 0:01:46]} Qc5 {[%emt 0:01:39]} 80. Rg3+ {[%emt 0:00:29]} Kh6 {[%emt 0:00:13]} 81. Qd2+ {[%emt 0:00:10]} Kg7 {[%emt 0:00:17]} 82. Qc3+ {[%emt 0:00:03]} 1-0

[Event "USA-ch Girls 2017"]
[Site "Saint Louis"]
[Date "2017.07.10"]
[Round "3"]
[White "Wang, Annie"]
[Black "Cervantes Landeiro, Thalia"]
[Result "1/2-1/2"]
[ECO "D86"]
[WhiteElo "2023"]
[BlackElo "2032"]
[Annotator "NA RC"]
[PlyCount "97"]
[EventDate "2017.??.??"]
[EventType "tourn"]
[EventCountry "USA"]
[SourceTitle "playchess.com"]
[Source "ChessBase"]
[SourceQuality "1"]
[TimeControl "40/5400+30:1800+30"]

{[%evp 24,96,54,32767,20,12,44,64,69,50,49,45,83,32767,66,67,75,51,52,66,68,68,88,71,83,45,35,47,29,42,54,64,62,62,50,62,119,108,117,87,175,100,134,117,137,86,152,154,236,250,303,226,329,57,318,317,662,132,121,18,9,0,47,26,47,11,16,0,29,0,0,0,45,0,0]} 1. d4 {[%emt 0:00:00]} Nf6 {[%emt 0:00:05]} 2. c4 {[%emt 0:00:00]} g6 {[%emt 0:00:04]} 3. Nc3 {[%emt 0:00:00]} d5 {[%emt 0:00:07]} 4. cxd5 {[%emt 0:00:00]} Nxd5 {[%emt 0:00:05]} 5. e4 {[%emt 0:00:00]} Nxc3 {[%emt 0:00:05]} 6. bxc3 {[%emt 0:00:09]} Bg7 {[%emt 0:00:06]} 7. Bc4 {[%emt 0:00:09]} c5 {[%emt 0:00:08]} 8. Ne2 {[%emt 0:00:11]} O-O {[%emt 0:00:08]} 9. O-O {[%emt 0:00:09]} Nc6 {[%emt 0:00:04]} 10. Be3 {[%emt 0:00:10]} Qc7 {[%emt 0:00:13]} 11. Rc1 {[%emt 0:00:26]} Rd8 {[%emt 0:00:11]} 12. Bf4 {[%emt 0:06:27]} Qd7 {[%emt 0:03:12]} 13. d5 {[%emt 0:00:32] D87: Exchange Grünfeld: Classical Line: Variations without ...cxd4} (13. dxc5 Qe8 14. Bd5 Ne5 15. Nd4 e6 16. Bb3 Qe7 17. Be3 b6 18. cxb6 Ba6 19. c4 Qb7 20. Qe2 axb6 21. Nb5 {½-½ (40) Grischuk,A (2746)-Nepomniachtchi,I (2711) Moscow 2011}) 13... Na5 {[%emt 0:02:34]} 14. Bd3 {[%emt 0:00:13] LiveBook: 111 Games} c4 {[%emt 0:02:15]} 15. Bc2 {[%emt 0:00:29]} b5 {[%emt 0:03:03]} 16. Rb1 {[%emt 0:02:32]} a6 {[%emt 0:04:45]} 17. Qc1 {[%emt 0:13:08]} Nb7 {[%emt 0:10:10]} 18. Rd1 {[%emt 0:08:19] [#]} Nc5 $146 {[%emt 0:18:36]} ({Predecessor:} 18... Qe8 19. Bh6 e6 20. Bxg7 Kxg7 21. Ng3 Qe7 22. a4 exd5 23. exd5 {0-1 (61) Echeguren,G (2566)-Hjort,B (2510) ICCF corr 1999}) 19. Qa3 {[%emt 0:16:53]} Nd3 $1 {[%emt 0:02:44]} 20. Bxd3 {[%emt 0:08:38]} cxd3 {[%emt 0:00:10]} 21. Rxd3 {[%emt 0:00:15]} Bb7 {[%emt 0:01:34]} 22. Rbd1 {[%emt 0:04:04]} Rac8 {[%emt 0:11:45]} 23. Be3 {[%emt 0:11:36]} Rc4 {[%emt 0:03:56]} 24. Bd4 {[%emt 0:04:01]} Bf8 {[%emt 0:04:34]} 25. Qb2 {[%emt 0:05:32]} f5 {[%emt 0:05:42]} 26. f3 {[%emt 0:11:40]} fxe4 {[%emt 0:03:32]} 27. fxe4 {[%emt 0:00:07]} e5 {[%emt 0:05:41]} 28. Bb6 {[%emt 0:02:42]} ({But not} 28. Bxe5 Rxe4 29. Bg3 Qg4 $15) 28... Rdc8 {[%emt 0:00:24]} 29. Ng3 $1 {[%emt 0:00:50]} b4 {[%emt 0:01:14]} 30. cxb4 {[%emt 0:01:55]} Rxb4 {[%emt 0:03:33] [#]} 31. Rb3 $1 {[%emt 0:00:09]} Rcc4 {[%emt 0:09:32]} (31... Qb5 $16 32. Rxb4 Bxb4) 32. Bf2 {[%emt 0:01:41]} (32. d6 $18 Qb5 33. Qf2) 32... Bd6 {[%emt 0:02:05]} 33. Rxb4 {[%emt 0:00:40]} Rxb4 {[%emt 0:00:07]} 34. Qe2 {[%emt 0:00:06]} h5 {[%emt 0:01:25]} 35. Nf1 {[%emt 0:01:53]} Qb5 {[%emt 0:02:43]} (35... Qc7 $16 36. Qe3 Kg7) 36. Qf3 {[%emt 0:00:14]} Kg7 {[%emt 0:00:59]} 37. Bh4 {[%emt 0:00:58]} Qd7 {[%emt 0:00:13]} 38. Kh1 $2 {[%emt 0:00:54]} ({Much less strong is} 38. a3 $6 Ra4 $16) (38. Qf6+ $18 Kh7 39. Nd2 Bc5+ 40. Bf2) 38... Bc8 $2 (38... Qf7 $16 {keeps fighting.}) 39. Rc1 {[%emt 0:00:39]} Bb7 {[%emt 0:01:19]} (39... Kh7 $142 40. Nd2 Rb7) 40. Ng3 $2 {[%emt 0:00:00]} (40. Qf6+ $18 Kh7 41. Nd2 Bxd5 42. Nf3) 40... Qf7 {[%emt 0:00:45]} 41. Qxf7+ {[%emt 0:14:47]} (41. Bd8 $16) 41... Kxf7 {[%emt 0:00:05]} 42. Rf1+ {[%emt 0:00:42]} Kg7 {[%emt 0:06:28]} 43. Bf6+ {[%emt 0:02:36]} Kg8 {[%emt 0:00:28]} 44. h3 {[%emt 0:03:12]} a5 {[%emt 0:02:17]} 45. Kh2 {[%emt 0:02:02]} a4 {[%emt 0:01:15]} 46. Bg5 {[%emt 0:04:51]} Kg7 {[%emt 0:02:31]} 47. Bf6+ {[%emt 0:03:23]} Kg8 {[%emt 0:00:11]} 48. Bg5 {[%emt 0:01:45]} Kg7 $11 {[%emt 0:01:35]} 49. Bf6+ {[%emt 0:01:54]} 1/2-1/2

[Event "USA-ch Girls 2017"]
[Site "Saint Louis"]
[Date "2017.07.11"]
[Round "4"]
[White "Nguyen, Emily"]
[Black "Wang, Annie"]
[Result "1-0"]
[ECO "D37"]
[WhiteElo "2048"]
[BlackElo "2023"]
[Annotator "NA RC"]
[PlyCount "89"]
[EventDate "2017.??.??"]
[EventType "tourn"]
[EventCountry "USA"]
[SourceTitle "playchess.com"]
[Source "ChessBase"]
[SourceQuality "1"]
[TimeControl "40/5400+30:1800+30"]

{[%evp 19,85,29,23,22,30,6,11,4,0,10,21,17,18,0,24,0,37,23,49,22,12,0,8,0,0,0,11,0,0,-12,0,12,0,0,43,66,66,39,51,46,123,119,208,237,473,475,425,492,495,474,491,474,449,475,493,489,475,484,443,447,495,509,529,541,585,606,734,791]} 1. d4 {[%emt 0:00:00]} Nf6 {[%emt 0:00:07]} 2. Nf3 {[%emt 0:00:00]} e6 {[%emt 0:00:09]} 3. c4 {[%emt 0:00:00]} d5 {[%emt 0:00:06]} 4. Nc3 {[%emt 0:00:00]} Be7 {[%emt 0:00:06]} 5. cxd5 {[%emt 0:00:00]} exd5 {[%emt 0:00:11]} 6. Bg5 {[%emt 0:00:00]} c6 {[%emt 0:00:12]} 7. Qc2 {[%emt 0:00:09]} O-O {[%emt 0:01:51]} 8. e3 {[%emt 0:00:13]} Nbd7 {[%emt 0:02:01]} 9. Bd3 {[%emt 0:00:08]} h6 {[%emt 0:03:25]} 10. Bh4 {[%emt 0:03:50]} Re8 {[%emt 0:00:55]} 11. O-O {[%emt 0:01:22]} Ne4 {[%emt 0:11:23]} 12. Bxe7 {[%emt 0:04:51]} Qxe7 {[%emt 0:00:10] LiveBook: 107 Games} 13. Rab1 {[%emt 0:05:04]} Ndf6 {[%emt 0:07:01]} 14. Ne5 {[%emt 0:04:23] D36: Queen's Gambit Declined: Exchange Variation: Main line (5 Bg5 c6 6 Qc2)} (14. b4 Bf5 15. Nd2 Nxc3 16. Qxc3 Bxd3 17. Qxd3 a6 18. a4 Rec8 19. Rfc1 Ne8 20. b5 cxb5 21. Rxc8 Rxc8 22. axb5 {½-½ (64) Nguyen,T (2347)-Zhou,J (2619) Ho Chi Minh City 2017}) 14... Ng4 {[%emt 0:19:28]} 15. Nxg4 {[%emt 0:02:42]} Bxg4 {[%emt 0:00:11]} 16. b4 {[%emt 0:04:16]} Rac8 $146 {[%emt 0:05:01]} ({Predecessor:} 16... Ng5 17. Bf5 Bxf5 18. Qxf5 Rad8 19. Rfc1 Rd6 20. b5 Rf6 21. Qd3 Rg6 {0-1 (35) Buechle,R (1977)-Nagel,V (2007) Germany 2012}) 17. Rfc1 {[%emt 0:04:46]} Bd7 {[%emt 0:10:06]} 18. Qb2 {[%emt 0:07:51]} Qg5 {[%emt 0:07:16]} 19. b5 {[%emt 0:08:02]} c5 {[%emt 0:06:41]} 20. dxc5 {[%emt 0:04:37]} Nxc5 {[%emt 0:00:46]} 21. Bf1 {[%emt 0:02:47]} Bf5 {[%emt 0:09:10]} 22. Ra1 {[%emt 0:00:32]} Red8 {[%emt 0:01:59]} 23. Rd1 {[%emt 0:07:59]} Qf6 {[%emt 0:02:25]} 24. Qb4 {[%emt 0:08:02]} Ne4 {[%emt 0:01:05]} 25. Nxe4 {[%emt 0:03:26]} dxe4 {[%emt 0:00:18]} 26. Qa4 {[%emt 0:05:57]} Bg6 {[%emt 0:05:33]} 27. Rxd8+ {[%emt 0:04:36]} Rxd8 {[%emt 0:00:09]} 28. Rd1 {[%emt 0:00:54]} Rxd1 {[%emt 0:02:38]} 29. Qxd1 {[%emt 0:00:04]} Bf5 {[%emt 0:00:14]} (29... Kh7 $14) 30. Qd5 {[%emt 0:05:32]} Qe6 {[%emt 0:02:00]} (30... Bc8 $16) 31. Qxb7 {[%emt 0:01:56]} Qxa2 $2 {[%emt 0:00:20] [#]} (31... Qb6 32. Qd5 g6) 32. Qa8+ $1 {[%emt 0:00:33]} Kh7 {[%emt 0:00:31] [#]} 33. b6 $1 {[%emt 0:00:27]} Be6 {[%emt 0:02:09]} 34. b7 {[%emt 0:00:59]} Bd5 {[%emt 0:00:06]} 35. b8=Q {[%emt 0:00:14]} Bxa8 {[%emt 0:00:05]} 36. Qxa8 {[%emt 0:00:04]} Qa4 {[%emt 0:01:10]} 37. Qd5 {[%emt 0:01:05]} Qe8 {[%emt 0:00:37]} 38. Bb5 {[%emt 0:00:49]} Qe7 {[%emt 0:01:00]} 39. Bc6 {[%emt 0:00:11]} g6 {[%emt 0:00:36]} 40. Qxe4 {[%emt 0:00:00]} Qc5 {[%emt 0:00:15]} 41. g3 {[%emt 0:00:22]} a5 {[%emt 0:00:34]} 42. Kg2 {[%emt 0:00:40]} Qa7 {[%emt 0:01:02]} 43. Qd4 $18 {[%emt 0:00:53]} Qe7 {[%emt 0:04:11]} 44. Qd5 {[%emt 0:01:08]} Qa7 {[%emt 0:02:13]} 45. Qd7 {[%emt 0:00:28]} 1-0

[Event "USA-ch Girls 2017"]
[Site "Saint Louis"]
[Date "2017.07.11"]
[Round "4"]
[White "Bykovtsev, Agata"]
[Black "Ulrich, Rachel J"]
[Result "1-0"]
[ECO "B90"]
[WhiteElo "2045"]
[BlackElo "2049"]
[Annotator "NA RC"]
[PlyCount "57"]
[EventDate "2017.??.??"]
[EventType "tourn"]
[EventCountry "USA"]
[SourceTitle "playchess.com"]
[Source "ChessBase"]
[SourceQuality "1"]
[TimeControl "40/5400+30:1800+30"]

{[%evp 27,57,-14,19,6,51,21,28,27,22,-105,-101,-92,-94,-104,-110,-182,-68,-89,-72,-54,-8,-9,311,320,478,501,505,502,441,531,532,433]} 1. e4 {[%emt 0:00:00]} c5 {[%emt 0:00:02]} 2. Nf3 {[%emt 0:00:00]} d6 {[%emt 0:00:01]} 3. Nc3 {[%emt 0:00:00]} Nf6 {[%emt 0:00:04]} 4. d4 {[%emt 0:00:00]} cxd4 {[%emt 0:00:05]} 5. Nxd4 {[%emt 0:00:00]} a6 {[%emt 0:00:05]} 6. Bc4 {[%emt 0:00:00]} e6 {[%emt 0:00:02]} 7. O-O {[%emt 0:00:05]} b5 {[%emt 0:00:03]} 8. Bb3 {[%emt 0:00:09]} Be7 {[%emt 0:00:39]} 9. Qf3 {[%emt 0:00:09]} Qb6 {[%emt 0:00:05]} 10. Be3 {[%emt 0:00:34]} Qb7 {[%emt 0:00:08]} 11. Qg3 {[%emt 0:00:42]} O-O {[%emt 0:00:04]} 12. Bh6 {[%emt 0:01:11]} Ne8 {[%emt 0:00:04]} 13. Rfe1 {[%emt 0:01:09]} Bf6 {[%emt 0:01:26] B87: Sicilian Scheveningen/Najdorf: 6 Bc4, with early ...b5} (13... Bd7 14. Rad1 Nc6 15. Nd5 Bd8 16. Nf5 exf5 17. exf5 Ne5 18. Rxe5 dxe5 19. f6 g6 20. Ne7+ {1-0 (20) Rublevsky,S (2678)-Zude,E (2409) Aix les Bains 2011}) 14. Be3 {[%emt 0:25:24]} Bd7 {[%emt 0:02:12]} 15. f3 $146 {[%emt 0:11:54]} ({Predecessor:} 15. Rad1 Nc6 16. f3 Rc8 17. Nxc6 Bxc6 18. Bg5 a5 19. Bxf6 Nxf6 20. a4 bxa4 21. Nxa4 {0-1 (51) Kriebel,T (2363)-Gabuzyan,H (2532) Al Ain 2013}) 15... a5 {[%emt 0:02:24]} 16. a4 {[%emt 0:03:46]} bxa4 {[%emt 0:03:05]} 17. Nxa4 {[%emt 0:02:09]} Na6 {[%emt 0:03:16]} 18. Nb6 {[%emt 0:12:23]} (18. Red1 $11 {remains equal.}) 18... Qxb6 {[%emt 0:01:55]} 19. Nxe6 {[%emt 0:00:04]} Nc5 {[%emt 0:00:11]} 20. Nxf8 {[%emt 0:01:16]} Kxf8 {[%emt 0:00:04]} 21. f4 {[%emt 0:08:55]} (21. Qf2 $17 {might work better.}) 21... Qc7 {[%emt 0:06:44]} ({Don't play} 21... Bxb2 22. Rab1 $17) (21... Qd8 $19 22. Bxc5 dxc5) 22. Bd5 {[%emt 0:03:39]} Rb8 {[%emt 0:02:17]} 23. e5 {[%emt 0:05:35]} dxe5 {[%emt 0:05:23]} ({Better is} 23... Be7 $15 24. Qf3 Kg8) 24. fxe5 {[%emt 0:00:07]} Bxe5 $2 {[%emt 0:00:08] [#]} (24... Be7 $1 $11 {and Black stays safe.}) 25. Qxe5 $1 {[%emt 0:03:41]} Qxe5 {[%emt 0:00:33]} (25... Ne6 {was necessary.}) 26. Bxc5+ {[%emt 0:00:02]} Qd6 {[%emt 0:00:07] [#]} 27. Rxe8+ $1 {[%emt 0:05:56]} Kxe8 {[%emt 0:00:06]} 28. Bxd6 {[%emt 0:00:04]} Rxb2 {[%emt 0:00:04]} 29. Bb3 $18 {[%emt 0:00:20]} 1-0